bitfinex-derivatives/quotes_ETHF0:USTF0_20250321
["timestamp","ask_amount","ask_price","bid_price","bid_amount"]
[1742585196423,3.88728,1978.2,1977.9,0.00759763]
[1742585196624,1.0116,1978.0,1977.9,1.01924763]
[1742585197025,3.046,1978.0,1977.9,0.00759763]
[1742585197322,3.046,1978.0,1977.9,1.01924763]
[1742585197525,3.046,1978.0,1977.9,0.00759763]
[1742585197728,3.046,1978.0,1977.9,1.01924763]
[1742585198918,3.046,1978.0,1977.9,1.36999763]
[1742585199120,3.046,1978.0,1977.9,2.38164763]
[1742585199521,3.046,1978.0,1977.9,0.00759763]
[1742585201129,3.12975676,1978.0,1977.9,0.00759763]
[1742585201329,3.12975697,1978.0,1977.9,0.00759763]
[1742585202132,1.01181,1977.6,1977.5,2.0376]
[1742585202428,1.01196,1977.3,1977.2,3.2078]
[1742585202632,4.29496,1977.3,1977.2,4.6077]
[1742585202827,3.283,1977.3,1977.2,5.61971]
[1742585203526,4.29496,1977.3,1977.2,5.61971]
[1742585204532,3.283,1977.3,1977.2,5.61971]
[1742585205725,1.01950763,1977.4,1977.3,1.01196]
[1742585205726,3.29659763,1977.4,1977.3,1.01196]
[1742585205931,3.29659763,1977.4,1977.3,2.34956]
[1742585209026,3.29659763,1977.4,1977.3,3.01756]
[1742585211628,5.70720763,1977.4,1977.3,3.01756]
[1742585211829,4.69529763,1977.4,1977.3,3.01756]
[1742585212437,5.70720763,1977.4,1977.3,3.01756]
[1742585212637,3.29659763,1977.4,1977.3,3.01756]
[1742585213038,4.30850763,1977.4,1977.3,3.01756]
[1742585214433,4.98090763,1977.4,1977.3,3.01756]
[1742585214741,4.98090763,1977.4,1977.3,2.34956]
[1742585216334,6.30620763,1977.4,1977.3,2.34956]
[1742585226048,6.30620763,1977.4,1977.3,1.3376]
[1742585226251,1.01201,1977.2,1977.1,0.00759763]
[1742585226452,4.28501,1977.2,1977.1,0.00759763]
[1742585227258,5.69721,1977.2,1977.1,0.00759763]
[1742585227656,4.6852,1977.2,1977.1,0.00759763]
[1742585227862,5.69721,1977.2,1977.1,2.37055763]
[1742585228561,3.273,1977.2,1977.1,2.37055763]
[1742585228861,4.28501,1977.2,1977.1,2.37055763]
[1742585229062,3.273,1977.2,1977.1,2.37055763]
[1742585229456,4.28501,1977.2,1977.1,2.37055763]
[1742585229661,3.273,1977.2,1977.1,2.37055763]
[1742585229860,4.28501,1977.2,1977.1,2.37055763]
[1742585230761,3.273,1977.2,1977.1,2.37055763]
[1742585230954,4.28501,1977.2,1977.1,2.37055763]
[1742585231357,5.65541,1977.2,1977.1,2.37055763]
[1742585232860,5.65541,1977.2,1977.1,1.35849763]
[1742585233167,5.65541,1977.2,1977.1,2.37055763]
[1742585233563,5.65541,1977.2,1977.1,1.35849763]
[1742585233757,5.65541,1977.2,1977.1,2.37055763]
[1742585234866,5.65541,1977.2,1977.1,1.35849763]
[1742585235061,5.65541,1977.2,1977.1,0.00759763]
[1742585235760,1.01222,1976.8,1976.7,1.9783]
[1742585236069,4.28622,1976.8,1976.7,1.9783]
[1742585236365,4.28622,1976.8,1976.7,2.99057]
[1742585236869,4.96772,1976.8,1976.7,2.99057]
[1742585239866,4.96772,1976.8,1976.7,1.9783]
[1742585242766,4.96772,1976.8,1976.7,2.99057]
[1742585242966,4.96772,1976.8,1976.7,1.9783]
[1742585243467,1.01227,1976.7,1976.6,0.00759763]
[1742585243772,2.99867,1976.7,1976.6,0.00759763]
[1742585244271,1.01252,1976.2,1976.1,4.22035]
[1742585244569,4.28452,1976.2,1976.1,5.51635]
[1742585245375,3.272,1976.2,1976.1,5.51635]
[1742585249276,0.00759763,1976.3,1976.2,1.01252]
[1742585249574,0.00759763,1976.3,1976.2,2.40522]
[1742585250375,1.02006763,1976.3,1976.2,2.40522]
[1742585250976,0.00759763,1976.3,1976.2,2.40522]
[1742585256978,3.268,1976.5,1976.2,1.3927]
[1742585257178,3.268,1976.5,1976.4,4.22022]
[1742585257778,4.28037,1976.5,1976.4,1.70152]
[1742585258575,4.633,1976.5,1976.4,1.70152]
[1742585258779,4.633,1976.5,1976.4,4.90932]
[1742585259280,0.00759763,1976.6,1976.5,1.01237]
[1742585259578,3.27559763,1976.6,1976.5,3.05587]
[1742585260075,4.64059763,1976.6,1976.5,3.05587]
[1742585260682,5.65191763,1976.6,1976.5,3.05587]
[1742585260981,4.63959763,1976.6,1976.5,3.05587]
[1742585261982,3.27459763,1976.6,1976.5,3.05587]
[1742585266279,4.65029763,1976.6,1976.5,3.05587]
[1742585266580,5.66261763,1976.6,1976.5,5.61437]
[1742585266886,6.33511763,1976.6,1976.5,5.61437]
[1742585267179,4.65029763,1976.6,1976.5,5.61437]
[1742585267380,5.66261763,1976.6,1976.5,5.61437]
[1742585268182,1.01237,1976.5,1976.4,1.01239]
[1742585268386,3.04087,1976.5,1976.4,1.01239]
[1742585269694,3.04087,1976.5,1976.4,1.01242]
[1742585270484,1.01242,1976.4,1976.3,2.33793]
[1742585270695,5.67402,1976.4,1976.3,2.33793]
[1742585272393,5.67402,1976.4,1976.3,1.01243]
[1742585275190,1.01252,1976.2,1976.1,4.22033]
[1742585275389,4.27852,1976.2,1976.1,5.63153]
[1742585275787,6.22162,1976.2,1976.1,5.63153]
[1742585275997,6.22162,1976.2,1976.1,3.2078]
[1742585276895,6.22162,1976.2,1976.1,4.22038]
[1742585279295,1.9431,1976.2,1976.1,4.22038]
[1742585279497,4.5469,1976.2,1976.1,4.22038]
[1742585280490,5.55942,1976.2,1976.1,4.22038]
[1742585281198,4.5469,1976.2,1976.1,4.22038]
[1742585281400,5.55942,1976.2,1976.1,4.22038]
[1742585281791,4.5469,1976.2,1976.1,4.22038]
[1742585282097,5.55942,1976.2,1976.1,4.22038]
[1742585283793,4.5469,1976.2,1976.1,4.22038]
[1742585284102,1.69802,1976.4,1976.3,1.01247]
[1742585284297,4.96502,1976.4,1976.3,1.01247]
[1742585285501,4.96502,1976.4,1976.3,2.39847]
[1742585288103,4.96502,1976.4,1976.3,1.01247]
[1742585293009,1.01247,1976.3,1976.2,2.41018]
[1742585293206,2.40227,1976.3,1976.2,2.41018]
[1742585295103,2.40227,1976.3,1976.2,1.3977]
[1742585295305,1.01252,1976.2,1976.1,4.22033]
[1742585295607,5.64792,1976.2,1976.1,5.51933]
[1742585297309,3.267,1976.2,1976.1,5.51933]
[1742585297707,1.01247,1976.3,1976.2,1.01247]
[1742585297903,5.67947,1976.3,1976.2,2.40947]
[1742585298410,2.41247,1976.3,1976.2,2.40947]
[1742585298612,5.67947,1976.3,1976.2,2.40947]
[1742585300811,1.01252,1976.2,1976.0,0.00759763]
[1742585301012,2.42572,1976.2,1976.1,2.31287]
[1742585301213,5.69272,1976.2,1976.1,2.31287]
[1742585301716,3.267,1976.2,1976.1,5.52067]
[1742585302818,4.27952,1976.2,1976.1,5.52067]
[1742585305113,4.27952,1976.2,1976.1,2.31287]
[1742585305906,5.65052,1976.2,1976.1,2.31287]
[1742585309814,5.65052,1976.2,1976.1,5.52067]
[1742585310016,4.27952,1976.2,1976.1,5.52067]
[1742585313020,4.27952,1976.2,1976.1,2.31287]
[1742585314323,4.27952,1976.2,1976.1,1.3003]
[1742585318420,4.27952,1976.2,1976.1,2.31288]
[1742585318725,4.27952,1976.2,1976.1,1.3003]
[1742585319331,7.48732,1976.2,1976.1,1.3003]
[1742585319624,1.01258,1976.1,1976.0,0.00759763]
[1742585319829,3.04648,1976.1,1976.0,1.37489763]
[1742585322732,3.04648,1976.1,1976.0,2.38752763]
[1742585323429,3.04648,1976.1,1976.0,1.37489763]
[1742585328827,3.04648,1976.1,1976.0,2.38752763]
[1742585329028,3.04648,1976.1,1976.0,1.37489763]
[1742585329231,46.801,1976.3,1976.0,3.90643763]
[1742585329437,46.801,1976.3,1976.2,1.01252]
[1742585329632,51.08047,1976.3,1976.2,1.01252]
[1742585329836,51.08047,1976.3,1976.2,1.68592]
[1742585330534,51.08047,1976.3,1976.2,3.08352]
[1742585331934,51.08047,1976.3,1976.2,2.071]
[1742585332438,51.08047,1976.3,1976.2,3.08352]
[1742585332739,51.08047,1976.3,1976.2,2.071]
[1742585333238,51.72447,1976.3,1976.2,1.3976]
[1742585333433,53.00727,1976.3,1976.2,1.3976]
[1742585334939,1.01258,1976.1,1976.0,0.70899763]
[1742585335139,4.27958,1976.1,1976.0,0.70899763]
[1742585335439,4.27958,1976.1,1976.0,2.04499763]
[1742585335837,5.59188,1976.1,1976.0,2.04499763]
[1742585337443,5.59188,1976.1,1976.0,3.05762763]
[1742585337636,5.59188,1976.1,1976.0,2.04499763]
[1742585337942,5.59188,1976.1,1976.0,3.05762763]
[1742585338141,5.59188,1976.1,1976.0,2.04499763]
[1742585338550,5.59188,1976.1,1976.0,3.05762763]
[1742585338744,5.59188,1976.1,1976.0,2.04499763]
[1742585339450,5.59188,1976.1,1976.0,3.05762763]
[1742585341754,5.59188,1976.1,1976.0,2.04499763]
[1742585343058,5.59188,1976.1,1976.0,3.05762763]
[1742585343557,5.59188,1976.1,1976.0,2.04499763]
[1742585344259,5.59188,1976.1,1976.0,3.05762763]
[1742585344759,4.27958,1976.1,1976.0,3.05762763]
[1742585346457,4.27958,1976.1,1976.0,2.04499763]
[1742585346659,4.27958,1976.1,1976.0,3.05762763]
[1742585346856,4.27958,1976.1,1976.0,0.00759763]
[1742585347058,1.01268,1975.9,1975.8,1.4007]
[1742585347252,1.01273,1975.8,1975.7,3.2078]
[1742585347560,2.33553,1975.8,1975.7,4.6085]
[1742585348949,3.267,1975.9,1975.7,4.6085]
[1742585349157,5.63999,1975.9,1975.8,2.29313]
[1742585351753,5.63999,1975.9,1975.8,1.2804]
[1742585354465,5.63999,1975.9,1975.8,2.29313]
[1742585354764,5.63999,1975.9,1975.8,1.2804]
[1742585355260,5.63999,1975.9,1975.8,2.29313]
[1742585355565,4.27969,1975.9,1975.8,2.29313]
[1742585356455,4.27969,1975.9,1975.8,1.2804]
[1742585361267,4.27969,1975.9,1975.8,2.29313]
[1742585361460,4.27969,1975.9,1975.8,1.2804]
[1742585362069,1.01278,1975.7,1975.6,1.32839763]
[1742585362366,4.27978,1975.7,1975.6,2.34122763]
[1742585362770,4.27978,1975.7,1975.6,1.32839763]
[1742585363155,4.27978,1975.7,1975.6,2.34122763]
[1742585363360,5.59788,1975.7,1975.6,3.70432763]
[1742585363667,3.267,1975.7,1975.6,3.70432763]
[1742585364568,4.27978,1975.7,1975.6,3.70432763]
[1742585364767,3.267,1975.7,1975.6,3.70432763]
[1742585364968,4.27978,1975.7,1975.6,3.70432763]
[1742585369161,3.267,1975.7,1975.6,3.70432763]
[1742585371472,4.27978,1975.7,1975.6,3.70432763]
[1742585372073,2.53158,1976.0,1975.9,1.01268]
[1742585372074,1.01267,1976.0,1975.9,1.01268]
[1742585372365,5.58803,1976.0,1975.9,1.01268]
[1742585372768,5.58803,1976.0,1975.9,3.78318]
[1742585373367,2.32103,1976.0,1975.9,3.78318]
[1742585373568,5.58803,1976.0,1975.9,3.78318]
[1742585374776,2.32103,1976.0,1975.9,3.78318]
[1742585374974,2.29901,1976.1,1976.0,1.01258]
[1742585375276,5.56501,1976.1,1976.0,2.37508]
[1742585375476,6.25871,1976.1,1976.0,2.37508]
[1742585376571,6.25871,1976.1,1976.0,1.3625]
[1742585377071,1.01263,1976.0,1975.9,0.6789]
[1742585377278,2.37483,1976.0,1975.9,0.6789]
[1742585377672,2.37483,1976.0,1975.9,2.0647]
[1742585377873,2.37483,1976.0,1975.9,3.07738]
[1742585378379,2.37483,1976.0,1975.9,2.0647]
[1742585378767,2.37483,1976.0,1975.9,3.07738]
[1742585382382,55.9768,1976.3,1975.9,3.07738]
[1742585382576,5.65547,1976.2,1976.1,1.01254]
[1742585383185,5.65547,1976.2,1976.1,1.3378]
[1742585383977,5.65547,1976.2,1976.1,2.35038]
[1742585384180,5.65547,1976.2,1976.1,1.3378]
[1742585384384,5.65547,1976.2,1976.1,2.35038]
[1742585384575,5.65547,1976.2,1976.1,1.3378]
[1742585386788,5.65547,1976.2,1976.1,2.35038]
[1742585387093,5.65547,1976.2,1976.1,1.3378]
[1742585387484,5.65547,1976.2,1976.1,2.35038]
[1742585388283,1.01263,1976.0,1975.9,1.69158]
[1742585388587,4.27863,1976.0,1975.9,1.69158]
[1742585388779,4.27863,1976.0,1975.9,0.6789]
[1742585388980,4.27863,1976.0,1975.9,1.69158]
[1742585389184,4.27863,1976.0,1975.9,0.6789]
[1742585389587,3.266,1976.0,1975.9,3.07618]
[1742585390284,50.07,1976.0,1975.9,3.07618]
[1742585390484,51.08263,1976.0,1975.9,3.07618]
[1742585393781,1.01268,1975.9,1975.8,3.2078]
[1742585393988,3.02138,1975.9,1975.8,2.33283]
[1742585394289,2.35308,1975.9,1975.8,2.33283]
[1742585395589,2.35308,1975.9,1975.8,5.54063]
[1742585395885,50.07,1976.0,1975.9,1.01268]
[1742585396090,52.47403,1976.0,1975.9,3.65268]
[1742585398890,51.4614,1976.0,1975.9,3.65268]
[1742585399089,52.47403,1976.0,1975.9,3.65268]
[1742585400288,51.4614,1976.0,1975.9,3.65268]
[1742585400496,52.47403,1976.0,1975.9,3.65268]
[1742585400993,50.07,1976.0,1975.9,3.65268]
[1742585401494,1.01246,1976.4,1976.3,1.01242]
[1742585401688,5.59216,1976.4,1976.3,1.01242]
[1742585402095,5.59216,1976.4,1976.3,2.30002]
[1742585404894,47.449,1976.5,1976.4,1.01242]
[1742585404895,46.804,1976.5,1976.4,1.01242]
[1742585405096,50.069,1976.5,1976.4,2.29642]
[1742585405595,51.441,1976.5,1976.4,2.29642]
[1742585405795,50.069,1976.5,1976.4,5.50422]
[1742585406885,51.3664,1976.5,1976.4,5.50422]
[1742585407294,52.37877,1976.5,1976.4,5.50422]
[1742585407494,53.05367,1976.5,1976.4,5.50422]
[1742585407890,52.0413,1976.5,1976.4,5.50422]
[1742585408099,53.05367,1976.5,1976.4,5.50422]
[1742585408509,52.0413,1976.5,1976.4,5.50422]
[1742585408998,53.05367,1976.5,1976.4,5.50422]
[1742585409895,53.05367,1976.5,1976.4,1.284]
[1742585410102,53.71447,1976.5,1976.4,1.284]
[1742585410306,1.01252,1976.2,1976.1,6.88455]
[1742585410604,1.01252,1976.2,1976.1,5.872]
[1742585410605,4.27752,1976.2,1976.1,5.872]
[1742585411004,4.27752,1976.2,1975.9,0.699]
[1742585411005,1.01263,1976.0,1975.9,0.699]
[1742585411302,1.01263,1976.0,1975.6,1.02042763]
[1742585411303,1.01278,1975.7,1975.6,1.02042763]
[1742585411498,1.01278,1975.7,1975.6,0.00759763]
[1742585411499,4.27778,1975.7,1975.6,0.00759763]
[1742585411704,4.27778,1975.7,1975.6,1.02042763]
[1742585412101,4.92118,1975.7,1975.6,2.42982763]
[1742585412405,1.01272,1975.9,1975.8,1.01268]
[1742585412596,4.27772,1975.9,1975.8,1.01268]
[1742585413901,5.58902,1975.9,1975.8,1.01268]
[1742585414099,5.58902,1975.9,1975.8,2.34988]
[1742585414700,5.58902,1975.9,1975.8,2.99188]
[1742585415703,1.01278,1975.8,1975.6,0.68879763]
[1742585416009,2.32408,1975.8,1975.7,2.34995]
[1742585416202,5.58908,1975.8,1975.7,2.34995]
[1742585418111,1.01278,1975.7,1975.6,1.02040763]
[1742585418310,2.29248,1975.7,1975.6,1.02040763]
[1742585418510,2.93008,1975.7,1975.6,1.02040763]
[1742585418704,2.29248,1975.7,1975.6,1.02040763]
[1742585418911,2.29248,1975.7,1975.6,2.32950763]
[1742585422004,1.2797,1975.7,1975.6,2.32950763]
[1742585422204,46.801,1975.8,1975.7,1.01278]
[1742585422405,50.066,1975.8,1975.7,5.50198]
[1742585422605,51.07873,1975.8,1975.7,5.50198]
[1742585422806,52.45683,1975.8,1975.7,5.50198]
[1742585423004,52.45683,1975.8,1975.7,6.16888]
[1742585425804,51.4441,1975.8,1975.7,6.16888]
[1742585426012,50.066,1975.8,1975.7,6.16888]
[1742585426406,46.801,1975.8,1975.7,6.16888]
[1742585426615,50.066,1975.8,1975.7,6.16888]
[1742585427004,46.801,1975.8,1975.7,6.16888]
[1742585427218,46.806,1976.3,1976.0,1.01263]
[1742585427415,46.806,1976.3,1976.2,1.01252]
[1742585427416,49.17324,1976.3,1976.2,1.01252]
[1742585427613,51.08354,1976.3,1976.2,1.01252]
[1742585428012,51.08354,1976.3,1976.2,2.30852]
[1742585429217,51.08354,1976.3,1976.2,1.296]
[1742585429415,51.08354,1976.3,1976.2,2.30852]
[1742585429814,51.08354,1976.3,1976.2,1.296]
[1742585430415,51.08354,1976.3,1976.2,2.30852]
[1742585430717,51.08354,1976.3,1976.2,1.296]
[1742585434432,1.01252,1976.2,1976.1,2.98396]
[1742585434629,1.68662,1976.2,1976.1,2.98396]
[1742585435030,1.68662,1976.2,1976.1,1.2768]
[1742585437933,2.98642,1976.2,1976.1,1.2768]
[1742585438236,1.01278,1975.8,1975.7,1.01276]
[1742585438529,1.01278,1975.7,1975.6,5.61328763]
[1742585439434,1.01278,1975.7,1975.6,2.40548763]
[1742585439626,2.31258,1975.7,1975.6,3.76588763]
[1742585442137,2.31258,1975.7,1975.6,3.76592763]
[1742585442834,2.31258,1975.7,1975.6,1.36799763]
[1742585443139,3.01528,1975.7,1975.6,1.36799763]
[1742585444837,3.01528,1975.7,1975.6,0.00759763]
[1742585448931,1.01288,1975.5,1975.4,3.2078]
[1742585449130,1.01293,1975.4,1975.3,1.351]
[1742585449338,2.98833,1975.4,1975.3,1.351]
[1742585449837,3.65653,1975.4,1975.3,1.351]
[1742585450141,1.01309,1975.1,1975.0,3.8924]
[1742585450337,4.27809,1975.1,1975.0,3.2078]
[1742585452035,4.97679,1975.1,1975.0,3.2078]
[1742585453740,1.01314,1975.0,1974.9,0.00759763]
[1742585453941,2.36184,1975.0,1974.9,0.00759763]
[1742585454142,3.04894,1975.0,1974.9,0.00759763]
[1742585455049,3.04894,1975.0,1974.9,1.35859763]
[1742585455547,3.04894,1975.0,1974.9,0.00759763]
[1742585457437,3.13283517,1975.0,1974.9,0.00759763]
[1742585457641,1.01329,1974.7,1974.6,1.3262]
[1742585457938,51.09829,1974.7,1974.6,2.33954]
[1742585458641,52.42149,1974.7,1974.6,2.33954]
[1742585458944,52.42149,1974.7,1974.6,0.639]
[1742585459347,55.62929,1974.7,1974.6,0.639]
[1742585459736,1.01334,1974.6,1974.5,1.33319763]
[1742585459935,2.30794,1974.6,1974.5,1.33319763]
[1742585460140,1.0135,1974.3,1974.2,1.69052]
[1742585460336,4.2795,1974.3,1974.2,2.34172]
[1742585461350,4.2795,1974.3,1974.2,2.7127]
[1742585462841,7.4873,1974.3,1974.2,2.7127]
[1742585463352,4.2795,1974.3,1974.2,2.7127]
[1742585464342,1.02107763,1974.4,1974.2,2.7127]
[1742585464548,1.02107763,1974.4,1974.3,2.3123]
[1742585464756,4.28707763,1974.4,1974.3,2.3123]
[1742585466151,4.28707763,1974.4,1974.3,1.2988]
[1742585467450,5.58447763,1974.4,1974.3,1.2988]
[1742585467651,6.28537763,1974.4,1974.3,1.2988]
[1742585468152,9.49317763,1974.4,1974.3,1.2988]
[1742585468649,9.57710295,1974.4,1974.3,1.2988]
[1742585468852,1.01355,1974.2,1974.1,0.00506507]
[1742585469055,7.48735,1974.2,1974.1,1.39376507]
[1742585469250,7.48735,1974.2,1974.0,0.662]
[1742585469251,1.0137,1973.9,1973.8,0.6519]
[1742585469454,51.1167,1973.9,1973.8,2.0406]
[1742585471053,51.1167,1973.9,1973.8,3.05436]
[1742585471252,51.1167,1973.9,1973.8,2.0406]
[1742585473153,51.1167,1973.9,1973.8,1.3887]
[1742585473154,54.3245,1973.9,1973.8,1.3887]
[1742585473752,51.1167,1973.9,1973.8,2.40246]
[1742585474755,51.1167,1973.9,1973.8,1.3887]
[1742585474945,51.1167,1973.9,1973.8,2.40246]
[1742585475745,46.837,1973.9,1973.8,2.40246]
[1742585476459,47.86506763,1974.4,1974.3,1.0135]
[1742585476653,51.13206763,1974.4,1974.3,1.0135]
[1742585476957,50.11859763,1974.4,1974.3,4.2213]
[1742585477145,46.85159763,1974.4,1974.3,4.2213]
[1742585477349,46.85159763,1974.4,1974.3,5.521]
[1742585478659,46.85159763,1974.4,1974.3,8.021]
[1742585478859,46.85159763,1974.4,1974.3,5.521]
[1742585480459,0.00759763,1974.4,1974.3,5.521]
[1742585490659,3.266,1974.7,1974.6,1.01334]
[1742585490863,3.266,1974.7,1974.6,4.22114]
[1742585491463,3.266,1974.7,1974.6,4.92624]
[1742585492071,4.27929,1974.7,1974.6,4.92624]
[1742585492271,4.5853,1974.7,1974.6,4.92624]
[1742585493170,3.266,1974.7,1974.6,4.92624]
[1742585493767,3.266,1974.7,1974.6,5.62264]
[1742585495472,4.27929,1974.7,1974.6,5.62264]
[1742585495675,0.00759763,1974.8,1974.7,1.01329]
[1742585495878,0.00759763,1974.8,1974.7,2.37639]
[1742585495879,4.55239763,1974.8,1974.7,2.37639]
[1742585497179,5.56563763,1974.8,1974.7,2.37639]
[1742585497689,4.55239763,1974.8,1974.7,2.37639]
[1742585497987,5.56563763,1974.8,1974.7,2.37639]
[1742585498285,4.55239763,1974.8,1974.7,2.37639]
[1742585499489,5.56563763,1974.8,1974.7,2.37639]
[1742585500188,4.55239763,1974.8,1974.7,2.37639]
[1742585500489,5.56563763,1974.8,1974.7,2.37639]
[1742585501489,4.55239763,1974.8,1974.7,2.37639]
[1742585501685,0.00759763,1974.8,1974.7,2.37639]
[1742585501886,7.63e-06,1974.8,1974.7,2.37639]
[1742585502082,7.63e-06,1974.8,1974.7,4.87639]
[1742585502487,7.63e-06,1974.8,1974.7,8.14139]
[1742585503597,7.63e-06,1974.8,1974.7,14.01339]
[1742585505089,7.63e-06,1974.8,1974.7,14.39220053]
[1742585514100,7.63e-06,1974.8,1974.7,14.01239]
[1742585516497,7.63e-06,1974.8,1974.7,14.3962306]
[1742585531812,7.63e-06,1974.8,1974.7,11.8962306]
[1742585537317,0.32630763,1975.1,1975.0,1.01314]
[1742585537520,7.63e-06,1975.1,1975.0,13.35594]
[1742585537819,0.6716,1975.2,1975.1,1.01309]
[1742585538022,0.7079,1975.6,1975.5,1.01288]
[1742585538223,0.7079,1975.6,1975.5,4.22068]
[1742585540625,1.9848,1975.6,1975.5,4.22068]
[1742585541323,2.645,1975.6,1975.5,4.22068]
[1742585552136,1.9371,1975.6,1975.5,4.22068]
[1742585552322,1.2769,1975.6,1975.5,4.91658]
[1742585552522,1.2769,1975.6,1975.5,5.59808]
[1742585553213,1.2769,1975.6,1975.5,4.90218]
[1742585553818,1.2769,1975.6,1975.5,6.27888]
[1742585557327,46.82359763,1975.7,1975.6,1.01283]
[1742585557525,48.19619763,1975.7,1975.6,2.43013]
[1742585557829,1.38019763,1975.7,1975.6,2.43013]
[1742585564035,0.00759763,1975.7,1975.6,2.43013]
[1742585564634,1.40669763,1975.7,1975.6,2.43013]
[1742585565332,0.00759763,1975.7,1975.6,2.43013]
[1742585566730,2.00649763,1975.7,1975.6,2.43013]
[1742585570828,7.76849763,1975.7,1975.5,3.2078]
[1742585571132,7.76849763,1975.7,1975.4,1.01291]
[1742585571133,1.01288,1975.5,1975.4,1.01291]
[1742585571331,4.27488,1975.5,1975.4,1.01291]
[1742585571528,4.92068,1975.5,1975.3,2.30054]
[1742585571721,1.9417,1975.4,1975.3,2.30054]
[1742585571922,1.9417,1975.4,1975.3,1.01294]
[1742585572334,2.95463,1975.4,1975.3,1.01294]
[1742585572730,1.9417,1975.4,1975.3,1.01294]
[1742585573125,1.3013,1975.4,1975.3,2.39604]
[1742585573437,50.07,1975.5,1975.4,1.01293]
[1742585573634,50.07,1975.5,1975.4,2.39603]
[1742585576339,50.07,1975.5,1975.4,5.60383]
[1742585576739,51.3887,1975.5,1975.4,2.39603]
[1742585577842,52.40158,1975.5,1975.4,2.39603]
[1742585578339,51.3887,1975.5,1975.4,2.39603]
[1742585579337,52.40158,1975.5,1975.4,2.39603]
[1742585579743,51.3887,1975.5,1975.4,2.39603]
[1742585581543,52.40158,1975.5,1975.4,1.3831]
[1742585581744,1.01303,1975.3,1975.2,1.01301]
[1742585582045,3.262,1975.3,1975.2,1.01301]
[1742585582340,4.27499,1975.3,1975.2,1.01301]
[1742585582545,5.60859,1975.3,1975.2,1.01301]
[1742585582935,5.60859,1975.3,1975.2,4.22081]
[1742585582936,3.262,1975.3,1975.2,4.22081]
[1742585583141,3.262,1975.3,1975.2,4.86001]
[1742585583537,4.5956,1975.3,1975.2,1.01301]
[1742585583843,4.5956,1975.3,1975.1,1.3754]
[1742585584045,1.3248,1975.2,1975.1,2.38849]
[1742585585441,3.262,1975.3,1975.2,1.01304]
[1742585585743,50.07,1975.5,1975.4,1.01293]
[1742585586040,50.07,1975.5,1975.4,4.22073]
[1742585586440,51.3948,1975.5,1975.4,4.22073]
[1742585586640,51.3948,1975.5,1975.4,5.61993]
[1742585587148,50.07,1975.5,1975.4,5.61993]
[1742585588640,50.07,1975.5,1975.4,2.41213]
[1742585589942,51.3564,1975.5,1975.4,2.41213]
[1742585595048,46.808,1975.5,1975.4,2.41213]
[1742585595250,3.261,1975.6,1975.5,1.01288]
[1742585595548,3.261,1975.6,1975.5,2.40108]
[1742585596053,0.00759763,1975.7,1975.6,1.01283]
[1742585596253,3.26859763,1975.7,1975.6,3.71883]
[1742585597343,4.67049763,1975.7,1975.6,3.71883]
[1742585598055,5.68327763,1975.7,1975.6,3.01773]
[1742585598246,5.68327763,1975.7,1975.5,1.01284]
[1742585598247,1.01283,1975.6,1975.5,1.01284]
[1742585598441,1.01283,1975.6,1975.4,1.0129]
[1742585598442,1.01288,1975.5,1975.4,1.0129]
[1742585598749,1.01288,1975.5,1975.3,2.37997]
[1742585598750,1.01293,1975.4,1975.3,2.37997]
[1742585598949,1.4019,1975.4,1975.3,2.37997]
[1742585600359,4.6629,1975.4,1975.3,2.37997]
[1742585600656,5.67583,1975.4,1975.3,2.37997]
[1742585600855,4.6629,1975.4,1975.3,2.37997]
[1742585601653,5.67583,1975.4,1975.3,2.37997]
[1742585601869,4.6629,1975.4,1975.3,2.37997]
[1742585602762,5.67583,1975.4,1975.3,2.37997]
[1742585604057,3.261,1975.4,1975.3,2.37997]
[1742585604358,3.2078,1975.6,1975.5,1.01288]
[1742585604558,6.4688,1975.6,1975.5,1.01288]
[1742585604953,3.261,1975.6,1975.5,1.01288]
[1742585605150,3.261,1975.6,1975.5,3.01178]
[1742585605459,0.00759763,1975.7,1975.6,1.01283]
[1742585605655,0.00759763,1975.7,1975.6,2.34003]
[1742585606165,0.00759763,1975.7,1975.6,5.54783]
[1742585607263,0.00759763,1975.7,1975.6,1.3272]
[1742585607264,2.98387763,1975.7,1975.6,1.3272]
[1742585607765,2.98387763,1975.7,1975.6,2.34003]
[1742585607965,2.98387763,1975.7,1975.6,1.3272]
[1742585608168,3.62777763,1975.7,1975.6,2.34003]
[1742585610667,1.97109763,1975.7,1975.6,2.34003]
[1742585610863,1.32379763,1975.7,1975.6,2.34003]
[1742585611569,2.33657763,1975.7,1975.6,2.34003]
[1742585611767,1.32379763,1975.7,1975.6,2.34003]
[1742585611964,3.26859763,1975.7,1975.6,5.54783]
[1742585612177,0.00759763,1975.7,1975.6,5.54783]
[1742585618669,0.00759763,1975.7,1975.6,8.80783]
[1742585621576,7.63e-06,1975.7,1975.6,8.80783]
[1742585622675,7.63e-06,1975.7,1975.6,14.67983]
[1742585626273,7.63e-06,1975.7,1975.6,11.41983]
[1742585626469,7.63e-06,1975.7,1975.6,8.21203]
[1742585626778,3.26000763,1975.7,1975.6,8.21203]
[1742585627374,4.55720763,1975.7,1975.6,8.21203]
[1742585627876,4.55720763,1975.7,1975.6,11.41983]
[1742585628066,3.26000763,1975.7,1975.6,11.41983]
[1742585628569,3.26000763,1975.7,1975.6,5.54783]
[1742585634077,3.26000763,1975.7,1975.6,2.34003]
[1742585635181,4.27278763,1975.7,1975.4,2.53224]
[1742585635477,2.583,1975.6,1975.5,1.01288]
[1742585636077,1.01288,1975.5,1975.4,2.4068]
[1742585636380,1.01288,1975.5,1975.4,1.0129]